{"text_format":"3","workbook":"xlsx","n_sheets":4,"sheets":["汇总","C6 高层","C12","C13"],"not_rendered":{"images":15,"defined_names":1},"read":"whole","date_system":"1900"}

{"sheet":"汇总","index":0,"n_rows":7,"n_cols":3,"rows_kept":7,"merged":[[0,0,0,2],[6,0,6,2]]}
["三明生态康养城一期交付区门牌及楼栋标识采购安装工程发包价"]
["地块","税前总价（元）","备注"]
["C6高层",{"$f":"'C6 高层'!J14","v":128160}]
["C12",{"$f":"'C12'!J9","v":16280}]
["C13",{"$f":"'C13'!J14","v":154370}]
["不含税合计",{"$f":"SUM(B3:B5)","v":298810}]
["备注：以上费用含除增值税外的一切费用。"]

{"sheet":"C6 高层","index":1,"n_rows":15,"n_cols":11,"rows_kept":15,"merged":[[0,0,0,10],[13,0,13,6],[14,0,14,10]]}
["三明生态康养城一期交付区门牌及楼栋标识采购安装工程发包价（C6地块高层）"]
["序号","项目","物料名称","参考图例（仅供示意）","参考尺寸（mm）\n（详见图纸）","工艺\n（详见图纸）","数量","单位","单价(元)","总价（元）","备注"]
["楼宇及室内部分标识"]
[1,"BA","楼栋牌",null,"1485*800*60","围边1.2mmTHK.304#不锈钢围边成型，\n面板1.5mmTHK.304#不锈钢围边成型，\n字壳厚度60mm\n竖纹拉丝，\n表面镀古铜效果（同展示区）\n背面化学锚栓安装于安装面\n四边耐候性密封胶固定\n不可溢胶",8,"块",1600,{"$f":"G4*I4","v":12800}]
[2,"BB","单元牌",null,"400*400*20","1.5mmTHK.304#不锈钢切割折弯成型，\n横纹拉丝，表面氧化着色（同展示区）\nLOGO蚀刻填色\n内凹5mm\n5mmTHK.304#不锈钢切割成型，\n横纹拉丝，表面氧化着色（同展示区）\n背面种钉安装于安装面\n四边耐候性密封胶固定\n不可溢胶",4,"块",280,{"$f":"G5*I5","v":1120}]
[3,"BC","电梯厅楼层牌",null,"120*142*10","面板1.5mmTHK.304#不锈钢围边成型，\n围边1.2mmTHK.304#不锈钢围边成型，\n横纹拉丝,镀暗古铜效果(同展示区)\n字壳厚度10mm\n耐候胶粘贴安装\n不可溢胶",228,"块",100,22800]
[4,"BD","住户门牌",null,"200*80*5","5mmTHK.亚克力板切割成型\n表面喷金属漆PANTONE 875 C\n内容丝印\n耐候胶粘贴安装\n不可溢胶",752,"块",25,18800]
[5,"BE","消防梯楼层标识",null,"355*240*5","5mmTHK.亚克力板切割成型\n表面喷金属漆PANTONE 875 C\n内容丝印\n耐候胶粘贴安装\n不可溢胶",236,"块",40,9440]
["地下车库导示标识"]
[6,"GB","地库出入口龙门牌",null,"7250*700*60","1.5mmTHK.304#不锈钢激光切割折弯焊接成型\n表面烤漆深灰PANTONE Black7C\n内容3M反光膜雕刻粘贴\n背面种钉安装\n四边耐候胶固定\n不可溢胶",2,"块",4500,9000]
[7,"GC","地库索引灯箱",null,"2200*300*80","Ø20mm不锈钢圆管切割成型\n表面烤漆深灰PANTONE Black 7 C\n1.5mmTHK.304#不锈钢激光切割折弯焊接成型\n表面烤漆深灰PANTONE Black 7 C\n内容3M反光膜雕刻粘贴",23,"块",1600,36800]
[8,"GD","电梯厅入口索引灯箱",null,"1500*300*80","Ø20mm不锈钢圆管切割成型\n表面烤漆深灰PANTONE Black 7 C\n1.5mmTHK.304#不锈钢激光切割折弯焊接成型\n表面烤漆深灰PANTONE Black 7 C\n内容3M反光膜雕刻粘贴",12,"块",1000,12000]
[9,"GE","电梯厅入口处标识",null,"598*500*40","面板1.5mmTHK.304#不锈钢切割成型，\n围边1.2mmTHK.304#不锈钢切割成型，\n字壳厚度30mm，表面镀古铜效果， 同展示区\n横纹拉丝，\n背面种钉安装\n耐候胶固定于石材面\n不可溢胶",12,"块",450,5400]
["不含税合计",{"$nulls":7},"/",{"$f":"SUM(J4:J8)+SUM(J10:J13)","v":128160}]
["备注：表中单价、总价均为税前价格，以上单价包含制作、预埋、安装、运输、维护、管理费及利润等除税金外一切费用。"]

{"sheet":"C12","index":2,"n_rows":10,"n_cols":11,"rows_kept":10,"merged":[[0,0,0,10],[8,0,8,6],[9,0,9,10]]}
["三明生态康养城一期交付区门牌及楼栋标识采购安装工程发包价（C12）"]
["序号","项目","物料名称","参考图例（仅供示意）","参考尺寸（mm）\n（详见图纸）","工艺\n（详见图纸）","数量","单位","单价（元）","总价（元）","备注"]
["园区标识"]
[1,"EE","楼栋牌",null,"1127*800*60","围边1.2mmTHK.304#不锈钢围边成型，\n面板1.5mmTHK.304#不锈钢围边成型，\n字壳厚度60mm\n竖纹拉丝，\n表面镀古铜效果（同展示区）\n背面化学锚栓安装于安装面\n四边耐候性密封胶固定\n不可溢胶",6,"块",1600,{"$f":"G4*I4","v":9600}]
[2,"EF","建筑入口标识",null,"400*400*20","1.5mmTHK.304#不锈钢切割折弯成型，\n横纹拉丝，表面氧化着色（同展示区）\nLOGO蚀刻填色\n内凹5mm\n5mmTHK.304#不锈钢切割成型，\n横纹拉丝，表面氧化着色（同展示区）\n背面种钉安装于安装面\n四边耐候性密封胶固定\n不可溢胶",8,"块",300,2400]
["楼宇及室内部分标识"]
[3,"BA","电梯楼层标识",null,"120*142*10","面板1.5mmTHK.304#不锈钢围边成型，\n围边1.2mmTHK.304#不锈钢围边成型，\n横纹拉丝,镀暗古铜效果(同展示区)\n字壳厚度10mm\n耐候胶粘贴安装\n不可溢胶",28,"块",100,2800]
[4,"BC","消防梯楼层标识",null,"355*240*5","5mmTHK.亚克力板切割成型\n表面喷金属漆PANTONE 875 C\n内容丝印\n耐候胶粘贴安装\n不可溢胶",37,"块",40,1480]
["不含税合计",{"$nulls":7},"/",{"$f":"J4+J5+J7+J8","v":16280}]
["备注：表中单价、总价均为税前价格，以上单价包含制作、预埋、安装、运输、维护、管理费及利润等除税金外一切费用。"]

{"sheet":"C13","index":3,"n_rows":15,"n_cols":11,"rows_kept":15,"merged":[[0,0,0,10],[13,0,13,6],[14,0,14,10]]}
["三明生态康养城一期交付区门牌及楼栋标识采购安装工程发包价（C13）"]
["序号","项目","物料名称","参考图例（仅供示意）","参考尺寸（mm）\n（详见图纸）","工艺\n（详见图纸）","数量","单位","单价（元）","总价（元）","备注"]
["楼宇及室内部分标识"]
[1,"BA","楼栋牌",null,"1794*800*60","围边1.2mmTHK.304#不锈钢围边成型，\n面板1.5mmTHK.304#不锈钢围边成型，\n字壳厚度60mm\n竖纹拉丝，\n表面镀古铜效果（同展示区）\n背面化学锚栓安装于安装面\n四边耐候性密封胶固定\n不可溢胶",12,"块",1600,{"$f":"G4*I4","v":19200}]
[2,"BB","单元牌",null,"400*400*20","1.5mmTHK.304#不锈钢切割折弯成型，\n横纹拉丝，表面氧化着色（同展示区）\nLOGO蚀刻填色\n内凹5mm\n5mmTHK.304#不锈钢切割成型，\n横纹拉丝，表面氧化着色（同展示区）\n背面种钉安装于安装面\n四边耐候性密封胶固定\n不可溢胶",6,"块",250,{"$f":"G5*I5","v":1500}]
[3,"BC","电梯厅楼层牌",null,"120*142*10","面板1.5mmTHK.304#不锈钢围边成型，\n围边1.2mmTHK.304#不锈钢围边成型，\n横纹拉丝,镀暗古铜效果(同展示区)\n字壳厚度10mm\n耐候胶粘贴安装\n不可溢胶",234,"块",100,23400]
[4,"BD","住户门牌",null,"200*80*5","5mmTHK.亚克力板切割成型\n表面喷金属漆PANTONE 875 C\n内容丝印\n耐候胶粘贴安装\n不可溢胶",774,"块",25,19350]
[5,"BE","消防梯楼层标识",null,"355*240*5","5mmTHK.亚克力板切割成型\n表面喷金属漆PANTONE Black 7 C\n内容丝印\n耐候胶粘贴安装\n不可溢胶",358,"块",40,14320]
["地下车库导示标识"]
[6,"GB","地库出入口龙门牌",null,"7250*700*60","1.5mmTHK.304#不锈钢激光切割折弯焊接成型\n表面烤漆深灰PANTONE Black7C\n内容3M反光膜雕刻粘贴\n背面种钉安装\n四边耐候胶固定\n不可溢胶",2,"块",4500,9000]
[7,"GC","地库索引灯箱",null,"2200*300*80","Ø20mm不锈钢圆管切割成型\n表面烤漆深灰PANTONE Black 7 C\n1.5mmTHK.304#不锈钢激光切割折弯焊接成型\n表面烤漆深灰PANTONE Black 7 C\n内容3M反光膜雕刻粘贴",35,"块",1600,{"$f":"G11*I11","v":56000}]
[8,"GD","电梯厅入口索引灯箱",null,"1500*300*80","Ø20mm不锈钢圆管切割成型\n表面烤漆深灰PANTONE Black 7 C\n1.5mmTHK.304#不锈钢激光切割折弯焊接成型\n表面烤漆深灰PANTONE Black 7 C\n内容3M反光膜雕刻粘贴",8,"块",1000,8000]
[9,"GE","电梯厅入口处标识",null,"779*500*40","面板1.5mmTHK.304#不锈钢切割成型，\n围边1.2mmTHK.304#不锈钢切割成型，\n字壳厚度30mm，表面镀古铜效果， 同展示区\n横纹拉丝，\n背面种钉安装\n耐候胶固定于石材面\n不可溢胶",8,"块",450,3600]
["不含税合计",{"$nulls":7},"/",{"$f":"SUM(J4:J8)+SUM(J10:J13)","v":154370}]
["备注：表中单价、总价均为税前价格，以上单价包含制作、预埋、安装、运输、维护、管理费及利润等除税金外一切费用。"]